[Event "Titled Tuesday Blitz February 21 Early 2023"]
[White "Shimanov, Aleksandr"]
[Black "Omelja, Artem"]
[WhiteFideId "4198603"]
[BlackFideId "14119846"]
[WhiteElo "2581"]
[BlackElo "2446"]
[Result "1-0"]
[Round "03"]
[TimeControl "180+2"]
[Date "2023.02.21"]
[WhiteClock "0:00:05"]
[BlackClock "0:00:01"]

1. d4 {[%clk 0:03:00]}  d5 {[%clk 0:02:59]} 2. c4 {[%clk 0:02:57]}  c6 {[%clk 0:02:55]} 3. Nc3 {[%clk 0:02:53]}  e6 {[%clk 0:02:51]} 4. e3 {[%clk 0:02:46]}  Nf6 {[%clk 0:02:50]} 5. Bd3 {[%clk 0:02:41]}  Nbd7 {[%clk 0:02:48]} 6. f4 {[%clk 0:02:37]}  dxc4 {[%clk 0:02:39]} 7. Bxc4 {[%clk 0:02:36]}  b5 {[%clk 0:02:39]} 8. Bd3 {[%clk 0:02:32]}  Bb7 {[%clk 0:02:38]} 9. Nf3 {[%clk 0:02:32]}  a6 {[%clk 0:02:32]} 10. O-O {[%clk 0:02:31]}  c5 {[%clk 0:02:27]} 11. Qe2 {[%clk 0:02:24]}  Qb6 {[%clk 0:02:23]} 12. Kh1 {[%clk 0:02:19]}  Be7 {[%clk 0:02:17]} 13. b3 {[%clk 0:02:18]}  O-O {[%clk 0:02:14]} 14. Bb2 {[%clk 0:02:18]}  Rfd8 {[%clk 0:02:14]} 15. Rad1 {[%clk 0:02:15]}  Rac8 {[%clk 0:02:08]} 16. Ne5 {[%clk 0:02:10]}  cxd4 {[%clk 0:01:35]} 17. exd4 {[%clk 0:02:10]}  Bb4 {[%clk 0:01:35]} 18. Nb1 {[%clk 0:01:59]}  Nd5 {[%clk 0:01:23]} 19. f5 {[%clk 0:01:57]}  N7f6 {[%clk 0:01:12]} 20. fxe6 {[%clk 0:01:52]}  fxe6 {[%clk 0:01:07]} 21. Nd2 {[%clk 0:01:45]}  Bc3 {[%clk 0:00:59]} 22. Ne4 {[%clk 0:01:09]}  Bxb2 {[%clk 0:00:54]} 23. Nxf6+ {[%clk 0:01:08]}  Nxf6 {[%clk 0:00:42]} 24. Qxb2 {[%clk 0:00:20]}  Ne4 {[%clk 0:00:31]} 25. Nf3 {[%clk 0:00:11]}  Nc3 {[%clk 0:00:26]} 26. Rde1 {[%clk 0:00:11]}  Bxf3 {[%clk 0:00:19]} 27. Rxf3 {[%clk 0:00:12]}  Rxd4 {[%clk 0:00:15]} 28. Qf2 {[%clk 0:00:11]}  Rd6 {[%clk 0:00:02]} 29. Qh4 {[%clk 0:00:10]}  h6 {[%clk 0:00:02]} 30. Ref1 {[%clk 0:00:09]}  Rdd8 {[%clk 0:00:01]} 31. Bg6 {[%clk 0:00:05]}  Qd4 {[%clk 0:00:01]} 32. Qe7 {[%clk 0:00:05]} 1-0


[Site "https://www.chess.com"]

[Event "Titled Tuesday Blitz February 21 Early 2023"]
[White "Tang, Andrew"]
[Black "Bethke, Richard"]
[WhiteFideId "2059630"]
[BlackFideId "12959243"]
[WhiteElo "2523"]
[BlackElo "2382"]
[Result "1-0"]
[Round "03"]
[TimeControl "180+2"]
[Date "2023.02.21"]
[WhiteClock "0:00:19"]
[BlackClock "0:00:01"]

1. d4 {[%clk 0:03:00]}  f5 {[%clk 0:02:59]} 2. Nf3 {[%clk 0:02:54]}  Nf6 {[%clk 0:02:46]} 3. g3 {[%clk 0:02:31]}  d5 {[%clk 0:02:44]} 4. Bg2 {[%clk 0:02:30]}  e6 {[%clk 0:02:44]} 5. O-O {[%clk 0:02:19]}  Bd6 {[%clk 0:02:43]} 6. b3 {[%clk 0:02:13]}  O-O {[%clk 0:02:42]} 7. c4 {[%clk 0:02:12]}  b6 {[%clk 0:02:41]} 8. Bb2 {[%clk 0:02:08]}  Bb7 {[%clk 0:02:40]} 9. Ne5 {[%clk 0:02:02]}  Nbd7 {[%clk 0:02:38]} 10. Nd2 {[%clk 0:01:59]}  c5 {[%clk 0:02:36]} 11. e3 {[%clk 0:01:53]}  Bxe5 {[%clk 0:02:18]} 12. dxe5 {[%clk 0:01:53]}  Ng4 {[%clk 0:02:18]} 13. cxd5 {[%clk 0:01:46]}  Ndxe5 {[%clk 0:02:10]} 14. h3 {[%clk 0:01:44]}  Nd3 {[%clk 0:01:53]} 15. hxg4 {[%clk 0:01:42]}  Nxb2 {[%clk 0:01:53]} 16. Qc2 {[%clk 0:01:43]}  Bxd5 {[%clk 0:01:46]} 17. Qxb2 {[%clk 0:01:36]}  Bxg2 {[%clk 0:01:44]} 18. Kxg2 {[%clk 0:01:37]}  Qd5+ {[%clk 0:01:44]} 19. Kg1 {[%clk 0:01:27]}  fxg4 {[%clk 0:01:33]} 20. Rad1 {[%clk 0:01:13]}  Rf6 {[%clk 0:01:27]} 21. Nc4 {[%clk 0:01:07]}  Qh5 {[%clk 0:01:24]} 22. Qe5 {[%clk 0:01:07]}  Qg6 {[%clk 0:01:00]} 23. Rd2 {[%clk 0:01:04]}  Raf8 {[%clk 0:00:59]} 24. Rfd1 {[%clk 0:01:04]}  h5 {[%clk 0:00:55]} 25. Nd6 {[%clk 0:00:56]}  h4 {[%clk 0:00:50]} 26. Qe4 {[%clk 0:00:56]}  Qh5 {[%clk 0:00:29]} 27. Qh1 {[%clk 0:00:51]}  h3 {[%clk 0:00:23]} 28. Rf1 {[%clk 0:00:39]}  Rf3 {[%clk 0:00:22]} 29. Nc4 {[%clk 0:00:31]}  Qf5 {[%clk 0:00:19]} 30. Qh2 {[%clk 0:00:29]}  Qe4 {[%clk 0:00:12]} 31. Re2 {[%clk 0:00:28]}  b5 {[%clk 0:00:08]} 32. Nd2 {[%clk 0:00:27]}  Qd3 {[%clk 0:00:08]} 33. Rfe1 {[%clk 0:00:18]}  R3f7 {[%clk 0:00:03]} 34. Qh1 {[%clk 0:00:19]}  Rd8 {[%clk 0:00:01]} 35. Qe4 {[%clk 0:00:19]} 1-0


[Site "https://www.chess.com"]

[Event "Titled Tuesday Blitz February 21 Early 2023"]
[White "Manukyan, Artyom"]
[Black "Demchenko, Anton"]
[WhiteFideId "13305786"]
[BlackFideId "4160258"]
[WhiteElo "2110"]
[BlackElo "2623"]
[Result "0-1"]
[Round "03"]
[TimeControl "180+2"]
[Date "2023.02.21"]
[WhiteClock "0:00:02"]
[BlackClock "0:00:12"]

1. e4 {[%clk 0:03:00]}  c5 {[%clk 0:02:56]} 2. Nc3 {[%clk 0:03:00]}  d6 {[%clk 0:02:55]} 3. f4 {[%clk 0:03:00]}  e6 {[%clk 0:02:52]} 4. Nf3 {[%clk 0:03:00]}  Bd7 {[%clk 0:02:52]} 5. Bc4 {[%clk 0:02:57]}  Nc6 {[%clk 0:02:52]} 6. O-O {[%clk 0:02:56]}  Be7 {[%clk 0:02:53]} 7. d3 {[%clk 0:02:57]}  Nf6 {[%clk 0:02:51]} 8. Qe1 {[%clk 0:02:56]}  Nd4 {[%clk 0:02:43]} 9. Nxd4 {[%clk 0:02:50]}  cxd4 {[%clk 0:02:44]} 10. Ne2 {[%clk 0:02:51]}  d5 {[%clk 0:02:44]} 11. exd5 {[%clk 0:02:38]}  exd5 {[%clk 0:02:45]} 12. Bb3 {[%clk 0:02:36]}  Qb6 {[%clk 0:02:46]} 13. Bd2 {[%clk 0:02:32]}  a5 {[%clk 0:02:45]} 14. a4 {[%clk 0:02:31]}  O-O {[%clk 0:02:44]} 15. Qf2 {[%clk 0:02:11]}  Rfe8 {[%clk 0:02:34]} 16. h3 {[%clk 0:02:05]}  Bc5 {[%clk 0:02:33]} 17. Rae1 {[%clk 0:02:02]}  Ne4 {[%clk 0:02:33]} 18. dxe4 {[%clk 0:01:29]}  d3 {[%clk 0:02:33]} 19. Nd4 {[%clk 0:01:19]}  Bxd4 {[%clk 0:02:32]} 20. Be3 {[%clk 0:01:19]}  Bxe3 {[%clk 0:01:44]} 21. Qxe3 {[%clk 0:01:17]}  Qxe3+ {[%clk 0:01:37]} 22. Rxe3 {[%clk 0:01:18]}  dxc2 {[%clk 0:01:30]} 23. Bxc2 {[%clk 0:00:35]}  Rac8 {[%clk 0:01:24]} 24. Re2 {[%clk 0:00:21]}  Rc4 {[%clk 0:00:59]} 25. Rd1 {[%clk 0:00:17]}  Bxa4 {[%clk 0:00:49]} 26. Bxa4 {[%clk 0:00:17]}  Rxa4 {[%clk 0:00:50]} 27. Rxd5 {[%clk 0:00:17]}  g6 {[%clk 0:00:44]} 28. Rb5 {[%clk 0:00:14]}  Re7 {[%clk 0:00:43]} 29. g3 {[%clk 0:00:13]}  Rc7 {[%clk 0:00:31]} 30. e5 {[%clk 0:00:11]}  Kf8 {[%clk 0:00:17]} 31. Kf2 {[%clk 0:00:12]}  Ra1 {[%clk 0:00:15]} 32. h4 {[%clk 0:00:11]}  a4 {[%clk 0:00:14]} 33. Rb4 {[%clk 0:00:07]}  Ra2 {[%clk 0:00:12]} 34. Kf3 {[%clk 0:00:05]}  a3 {[%clk 0:00:12]} 35. bxa3 {[%clk 0:00:04]}  Rxa3+ {[%clk 0:00:13]} 36. Kf2 {[%clk 0:00:04]}  Rcc3 {[%clk 0:00:13]} 37. Rxb7 {[%clk 0:00:04]}  Rf3+ {[%clk 0:00:13]} 38. Ke1 {[%clk 0:00:04]}  Rxg3 {[%clk 0:00:14]} 39. Rc2 {[%clk 0:00:04]}  Ra1+ {[%clk 0:00:13]} 40. Kf2 {[%clk 0:00:04]}  Rh3 {[%clk 0:00:13]} 41. Rc8+ {[%clk 0:00:04]}  Kg7 {[%clk 0:00:13]} 42. Rcc7 {[%clk 0:00:05]}  Ra2+ {[%clk 0:00:11]} 43. Kg1 {[%clk 0:00:05]}  Rg3+ {[%clk 0:00:11]} 44. Kh1 {[%clk 0:00:04]}  Kh6 {[%clk 0:00:11]} 45. Rxf7 {[%clk 0:00:04]}  Kh5 {[%clk 0:00:12]} 46. Rxh7+ {[%clk 0:00:03]}  Kg4 {[%clk 0:00:12]} 47. Rbg7 {[%clk 0:00:03]}  Kh3 {[%clk 0:00:12]} 48. h5 {[%clk 0:00:02]}  Ra1# {[%clk 0:00:12]} 0-1


[Site "https://www.chess.com"]

[Event "Titled Tuesday Blitz February 21 Early 2023"]
[White "Garv Gaur"]
[Black "Yilmaz, Mustafa"]
[WhiteFideId "45030839"]
[BlackFideId "6302718"]
[WhiteElo "2006"]
[BlackElo "2641"]
[Result "0-1"]
[Round "03"]
[TimeControl "180+2"]
[Date "2023.02.21"]
[WhiteClock "0:00:05"]
[BlackClock "0:00:03"]

1. d4 {[%clk 0:03:00]}  Nf6 {[%clk 0:02:58]} 2. Nf3 {[%clk 0:03:00]}  d5 {[%clk 0:02:57]} 3. c4 {[%clk 0:03:00]}  e6 {[%clk 0:02:55]} 4. g3 {[%clk 0:02:59]}  dxc4 {[%clk 0:02:52]} 5. Bg2 {[%clk 0:02:55]}  a6 {[%clk 0:02:52]} 6. Ne5 {[%clk 0:02:24]}  Bb4+ {[%clk 0:02:50]} 7. Nc3 {[%clk 0:02:22]}  Nd5 {[%clk 0:02:39]} 8. Bd2 {[%clk 0:02:21]}  Nb6 {[%clk 0:02:32]} 9. e3 {[%clk 0:02:21]}  N8d7 {[%clk 0:02:28]} 10. Nxd7 {[%clk 0:02:19]}  Qxd7 {[%clk 0:02:28]} 11. O-O {[%clk 0:02:19]}  O-O {[%clk 0:02:28]} 12. Qc2 {[%clk 0:02:19]}  Qe7 {[%clk 0:02:14]} 13. Ne4 {[%clk 0:02:19]}  a5 {[%clk 0:01:54]} 14. Rac1 {[%clk 0:02:09]}  e5 {[%clk 0:01:50]} 15. dxe5 {[%clk 0:01:37]}  Qxe5 {[%clk 0:01:50]} 16. a3 {[%clk 0:01:37]}  Be7 {[%clk 0:01:21]} 17. Bc3 {[%clk 0:01:34]}  Qh5 {[%clk 0:01:21]} 18. Bd4 {[%clk 0:01:30]}  c5 {[%clk 0:01:15]} 19. Bc3 {[%clk 0:01:29]}  Bf5 {[%clk 0:01:06]} 20. Rfd1 {[%clk 0:01:28]}  Rfe8 {[%clk 0:00:52]} 21. Qd2 {[%clk 0:01:21]}  Bg4 {[%clk 0:00:50]} 22. Re1 {[%clk 0:00:59]}  Red8 {[%clk 0:00:50]} 23. Qc2 {[%clk 0:00:59]}  Bf5 {[%clk 0:00:34]} 24. Red1 {[%clk 0:00:48]}  Qg6 {[%clk 0:00:25]} 25. Rxd8+ {[%clk 0:00:45]}  Bxd8 {[%clk 0:00:26]} 26. f3 {[%clk 0:00:41]}  Bxe4 {[%clk 0:00:23]} 27. fxe4 {[%clk 0:00:41]}  Bg5 {[%clk 0:00:21]} 28. Qe2 {[%clk 0:00:34]}  Na4 {[%clk 0:00:19]} 29. h4 {[%clk 0:00:26]}  Bh6 {[%clk 0:00:17]} 30. Kh2 {[%clk 0:00:26]}  Nxc3 {[%clk 0:00:15]} 31. Rxc3 {[%clk 0:00:26]}  b5 {[%clk 0:00:16]} 32. a4 {[%clk 0:00:24]}  bxa4 {[%clk 0:00:09]} 33. Qxc4 {[%clk 0:00:24]}  Qb6 {[%clk 0:00:07]} 34. Qxc5 {[%clk 0:00:22]}  Qxc5 {[%clk 0:00:07]} 35. Rxc5 {[%clk 0:00:23]}  Bxe3 {[%clk 0:00:07]} 36. Rc4 {[%clk 0:00:24]}  g6 {[%clk 0:00:04]} 37. Rxa4 {[%clk 0:00:24]}  Bd2 {[%clk 0:00:04]} 38. Bf1 {[%clk 0:00:14]}  Bb4 {[%clk 0:00:04]} 39. Bc4 {[%clk 0:00:13]}  Rc8 {[%clk 0:00:05]} 40. b3 {[%clk 0:00:13]}  Rd8 {[%clk 0:00:05]} 41. Bd5 {[%clk 0:00:14]}  Kg7 {[%clk 0:00:05]} 42. Ra1 {[%clk 0:00:13]}  Rc8 {[%clk 0:00:05]} 43. Bc4 {[%clk 0:00:13]}  Rd8 {[%clk 0:00:05]} 44. Bd5 {[%clk 0:00:13]}  f5 {[%clk 0:00:04]} 45. Rc1 {[%clk 0:00:12]}  fxe4 {[%clk 0:00:03]} 46. Bxe4 {[%clk 0:00:12]}  Rd2+ {[%clk 0:00:04]} 47. Kh3 {[%clk 0:00:11]}  Rd4 {[%clk 0:00:04]} 48. Rc4 {[%clk 0:00:10]}  Rd1 {[%clk 0:00:03]} 49. Rc7+ {[%clk 0:00:10]}  Kh8 {[%clk 0:00:03]} 50. Rc8+ {[%clk 0:00:10]}  Kg7 {[%clk 0:00:03]} 51. Rc7+ {[%clk 0:00:11]}  Kg8 {[%clk 0:00:02]} 52. Rc8+ {[%clk 0:00:11]}  Bf8 {[%clk 0:00:02]} 53. Bf3 {[%clk 0:00:09]}  Rd3 {[%clk 0:00:02]} 54. Bg4 {[%clk 0:00:06]}  Re3 {[%clk 0:00:02]} 55. h5 {[%clk 0:00:06]}  Kg7 {[%clk 0:00:02]} 56. hxg6 {[%clk 0:00:06]}  hxg6 {[%clk 0:00:02]} 57. Bd1 {[%clk 0:00:05]}  Bd6 {[%clk 0:00:03]} 58. Rc6 {[%clk 0:00:05]}  Rxg3+ {[%clk 0:00:03]} 59. Kh4 {[%clk 0:00:06]}  Rd3 {[%clk 0:00:04]} 60. Bg4 {[%clk 0:00:05]}  Be7+ {[%clk 0:00:03]} 0-1


[Site "https://www.chess.com"]

[Event "Titled Tuesday Blitz February 21 Early 2023"]
[White "Ferreira, Vitor Hugo Vieira"]
[Black "Zhigalko, Sergei"]
[WhiteFideId "2119765"]
[BlackFideId "13502956"]
[WhiteElo "2128"]
[BlackElo "2572"]
[Result "0-1"]
[Round "03"]
[TimeControl "180+2"]
[Date "2023.02.21"]
[WhiteClock "0:02:49"]
[BlackClock "0:02:21"]

1. Nf3 {[%clk 0:03:00]}  d5 {[%clk 0:03:00]} 2. g3 {[%clk 0:03:00]}  c6 {[%clk 0:03:00]} 3. Bg2 {[%clk 0:02:58]}  Bg4 {[%clk 0:03:01]} 4. O-O {[%clk 0:02:59]}  Nd7 {[%clk 0:03:01]} 5. c4 {[%clk 0:02:59]}  e6 {[%clk 0:03:02]} 6. cxd5 {[%clk 0:02:59]}  exd5 {[%clk 0:03:03]} 7. d3 {[%clk 0:03:00]}  Ngf6 {[%clk 0:03:03]} 8. Nc3 {[%clk 0:03:00]}  Bc5 {[%clk 0:03:03]} 9. e4 {[%clk 0:03:00]}  dxe4 {[%clk 0:03:02]} 10. dxe4 {[%clk 0:03:01]}  O-O {[%clk 0:03:03]} 11. Bf4 {[%clk 0:03:00]}  Re8 {[%clk 0:03:00]} 12. h3 {[%clk 0:02:59]}  Bh5 {[%clk 0:02:48]} 13. g4 {[%clk 0:02:59]}  Bg6 {[%clk 0:02:48]} 14. e5 {[%clk 0:02:58]}  Ne4 {[%clk 0:02:47]} 15. Re1 {[%clk 0:02:49]}  Nxf2 {[%clk 0:02:21]} 0-1


[Site "https://www.chess.com"]

[Event "Titled Tuesday Blitz February 21 Early 2023"]
[White "Anuj, Shrivatri"]
[Black "Mendez Fortes, Eduardo Jesus"]
[WhiteFideId "35070924"]
[BlackFideId "3502376"]
[WhiteElo "2407"]
[BlackElo "2250"]
[Result "1-0"]
[Round "03"]
[TimeControl "180+2"]
[Date "2023.02.21"]
[WhiteClock "0:01:51"]
[BlackClock "0:00:10"]

1. Nf3 {[%clk 0:02:59]}  d5 {[%clk 0:02:58]} 2. d4 {[%clk 0:02:59]}  Nf6 {[%clk 0:02:58]} 3. c4 {[%clk 0:03:00]}  e6 {[%clk 0:02:58]} 4. Nc3 {[%clk 0:03:00]}  Bb4 {[%clk 0:02:58]} 5. cxd5 {[%clk 0:02:57]}  exd5 {[%clk 0:02:58]} 6. Bg5 {[%clk 0:02:57]}  h6 {[%clk 0:02:58]} 7. Bh4 {[%clk 0:02:58]}  O-O {[%clk 0:02:58]} 8. e3 {[%clk 0:02:58]}  Bf5 {[%clk 0:02:57]} 9. Be2 {[%clk 0:02:57]}  g5 {[%clk 0:02:48]} 10. Bg3 {[%clk 0:02:54]}  Ne4 {[%clk 0:02:48]} 11. Nd2 {[%clk 0:02:48]}  Bxc3 {[%clk 0:02:42]} 12. bxc3 {[%clk 0:02:49]}  Nxc3 {[%clk 0:02:42]} 13. Qb3 {[%clk 0:02:50]}  Nxe2 {[%clk 0:02:42]} 14. Kxe2 {[%clk 0:02:51]}  Nc6 {[%clk 0:02:29]} 15. Qxb7 {[%clk 0:02:46]}  Nxd4+ {[%clk 0:02:06]} 16. exd4 {[%clk 0:02:45]}  Qe8+ {[%clk 0:01:58]} 17. Kf1 {[%clk 0:02:33]}  Rb8 {[%clk 0:01:50]} 18. Qxd5 {[%clk 0:02:28]}  Bd3+ {[%clk 0:01:43]} 19. Kg1 {[%clk 0:02:28]}  Qe2 {[%clk 0:01:43]} 20. Nf3 {[%clk 0:02:21]}  Rb5 {[%clk 0:00:53]} 21. Qc6 {[%clk 0:02:16]}  Be4 {[%clk 0:00:44]} 22. Qxh6 {[%clk 0:02:13]}  Rfb8 {[%clk 0:00:18]} 23. h4 {[%clk 0:02:07]}  Bxf3 {[%clk 0:00:16]} 24. gxf3 {[%clk 0:02:04]}  Qxf3 {[%clk 0:00:16]} 25. Re1 {[%clk 0:01:58]}  Rb1 {[%clk 0:00:12]} 26. Qxg5+ {[%clk 0:01:58]}  Kh8 {[%clk 0:00:11]} 27. Kh2 {[%clk 0:01:55]}  R1b2 {[%clk 0:00:10]} 28. Be5+ {[%clk 0:01:51]} 1-0


[Site "https://www.chess.com"]

[Event "Titled Tuesday Blitz February 21 Early 2023"]
[White "Samsonkin, Artiom"]
[Black "Golubev, Mikhail"]
[WhiteFideId "13503111"]
[BlackFideId "14100983"]
[WhiteElo "2420"]
[BlackElo "2461"]
[Result "1-0"]
[Round "03"]
[TimeControl "180+2"]
[Date "2023.02.21"]
[WhiteClock "0:00:21"]
[BlackClock "0:00:09"]

1. e4 {[%clk 0:03:00]}  c5 {[%clk 0:02:59]} 2. Nf3 {[%clk 0:03:01]}  d6 {[%clk 0:02:59]} 3. Bb5+ {[%clk 0:03:00]}  Bd7 {[%clk 0:02:58]} 4. Bxd7+ {[%clk 0:02:59]}  Nxd7 {[%clk 0:02:59]} 5. O-O {[%clk 0:02:59]}  Ngf6 {[%clk 0:02:59]} 6. Qe2 {[%clk 0:02:57]}  e6 {[%clk 0:02:52]} 7. b3 {[%clk 0:02:55]}  g6 {[%clk 0:02:51]} 8. Bb2 {[%clk 0:02:55]}  Bg7 {[%clk 0:02:51]} 9. c4 {[%clk 0:02:56]}  O-O {[%clk 0:02:48]} 10. d4 {[%clk 0:02:53]}  cxd4 {[%clk 0:02:47]} 11. Bxd4 {[%clk 0:02:52]}  a6 {[%clk 0:02:21]} 12. Nc3 {[%clk 0:02:46]}  Rc8 {[%clk 0:02:15]} 13. Rfd1 {[%clk 0:02:42]}  Qa5 {[%clk 0:02:08]} 14. Qb2 {[%clk 0:02:20]}  b5 {[%clk 0:01:53]} 15. b4 {[%clk 0:01:48]}  Qc7 {[%clk 0:01:53]} 16. c5 {[%clk 0:01:29]}  dxc5 {[%clk 0:01:47]} 17. bxc5 {[%clk 0:01:30]}  Nxc5 {[%clk 0:01:43]} 18. Rac1 {[%clk 0:01:17]}  Qe7 {[%clk 0:01:29]} 19. Qa3 {[%clk 0:01:01]}  Nfd7 {[%clk 0:01:23]} 20. e5 {[%clk 0:00:40]}  Rfe8 {[%clk 0:01:14]} 21. Ne4 {[%clk 0:00:36]}  b4 {[%clk 0:00:37]} 22. Qxb4 {[%clk 0:00:34]}  Rb8 {[%clk 0:00:37]} 23. Bxc5 {[%clk 0:00:23]}  Nxc5 {[%clk 0:00:09]} 24. Qxc5 {[%clk 0:00:21]} 1-0


[Site "https://www.chess.com"]

[Event "Titled Tuesday Blitz February 21 Early 2023"]
[White "Pichot, Alan"]
[Black "Buchenau, Frank"]
[WhiteFideId "110973"]
[BlackFideId "4604350"]
[WhiteElo "2638"]
[BlackElo "2222"]
[Result "1-0"]
[Round "03"]
[TimeControl "180+2"]
[Date "2023.02.21"]
[WhiteClock "0:00:03"]
[BlackClock "0:00:10"]

1. e4 {[%clk 0:01:56]}  e6 {[%clk 0:02:58]} 2. Qe2 {[%clk 0:01:54]}  c5 {[%clk 0:02:58]} 3. g3 {[%clk 0:01:54]}  Nc6 {[%clk 0:02:58]} 4. c3 {[%clk 0:01:53]}  g6 {[%clk 0:02:58]} 5. Bg2 {[%clk 0:01:51]}  Bg7 {[%clk 0:02:58]} 6. d3 {[%clk 0:01:52]}  Nge7 {[%clk 0:02:57]} 7. f4 {[%clk 0:01:52]}  O-O {[%clk 0:02:47]} 8. Nf3 {[%clk 0:01:53]}  d5 {[%clk 0:02:43]} 9. O-O {[%clk 0:01:52]}  b6 {[%clk 0:02:42]} 10. e5 {[%clk 0:01:45]}  Bb7 {[%clk 0:02:26]} 11. Nbd2 {[%clk 0:01:44]}  Nf5 {[%clk 0:02:16]} 12. Rd1 {[%clk 0:01:41]}  b5 {[%clk 0:02:15]} 13. Nf1 {[%clk 0:01:40]}  d4 {[%clk 0:02:13]} 14. g4 {[%clk 0:01:38]}  Nh4 {[%clk 0:02:08]} 15. Nxh4 {[%clk 0:01:37]}  Qxh4 {[%clk 0:02:08]} 16. Ng3 {[%clk 0:01:34]}  f6 {[%clk 0:01:45]} 17. Ne4 {[%clk 0:01:33]}  fxe5 {[%clk 0:01:37]} 18. Nxc5 {[%clk 0:01:32]}  Qe7 {[%clk 0:01:34]} 19. Nxb7 {[%clk 0:01:30]}  Qxb7 {[%clk 0:01:33]} 20. fxe5 {[%clk 0:01:29]}  Qb6 {[%clk 0:01:25]} 21. Qe4 {[%clk 0:01:02]}  Rac8 {[%clk 0:01:24]} 22. Kh1 {[%clk 0:00:49]}  Rf2 {[%clk 0:01:07]} 23. cxd4 {[%clk 0:00:44]}  Qxd4 {[%clk 0:00:59]} 24. Qxd4 {[%clk 0:00:39]}  Nxd4 {[%clk 0:00:59]} 25. Be3 {[%clk 0:00:40]}  Rxg2 {[%clk 0:00:59]} 26. Kxg2 {[%clk 0:00:39]}  Nc2 {[%clk 0:00:58]} 27. Bxa7 {[%clk 0:00:12]}  Nxa1 {[%clk 0:00:56]} 28. Rxa1 {[%clk 0:00:13]}  Rc2+ {[%clk 0:00:55]} 29. Kf3 {[%clk 0:00:13]}  Rxb2 {[%clk 0:00:50]} 30. d4 {[%clk 0:00:12]}  Rxh2 {[%clk 0:00:39]} 31. a4 {[%clk 0:00:12]}  b4 {[%clk 0:00:35]} 32. Bc5 {[%clk 0:00:10]}  b3 {[%clk 0:00:35]} 33. a5 {[%clk 0:00:08]}  Ra2 {[%clk 0:00:33]} 34. Rb1 {[%clk 0:00:08]}  b2 {[%clk 0:00:32]} 35. a6 {[%clk 0:00:07]}  Bh6 {[%clk 0:00:30]} 36. a7 {[%clk 0:00:06]}  Bc1 {[%clk 0:00:29]} 37. d5 {[%clk 0:00:05]}  exd5 {[%clk 0:00:27]} 38. e6 {[%clk 0:00:06]}  Kg7 {[%clk 0:00:21]} 39. g5 {[%clk 0:00:05]}  h5 {[%clk 0:00:20]} 40. gxh6+ {[%clk 0:00:05]}  Bxh6 {[%clk 0:00:19]} 41. Rxb2 {[%clk 0:00:04]}  Ra6 {[%clk 0:00:16]} 42. Rb8 {[%clk 0:00:04]}  Rxa7 {[%clk 0:00:11]} 43. Bxa7 {[%clk 0:00:03]}  Kf6 {[%clk 0:00:12]} 44. Re8 {[%clk 0:00:03]}  Bd2 {[%clk 0:00:10]} 45. Bd4+ {[%clk 0:00:03]} 1-0


[Site "https://www.chess.com"]

[Event "Titled Tuesday Blitz February 21 Early 2023"]
[White "Guliev, Logman"]
[Black "Fier, Alexandr"]
[WhiteFideId "13400061"]
[BlackFideId "2107139"]
[WhiteElo "2250"]
[BlackElo "2589"]
[Result "0-1"]
[Round "03"]
[TimeControl "180+2"]
[Date "2023.02.21"]
[WhiteClock "0:00:07"]
[BlackClock "0:01:39"]

1. e4 {[%clk 0:02:58]}  Nf6 {[%clk 0:02:56]} 2. e5 {[%clk 0:02:57]}  Nd5 {[%clk 0:02:56]} 3. d4 {[%clk 0:02:57]}  d6 {[%clk 0:02:57]} 4. Nf3 {[%clk 0:02:58]}  Bg4 {[%clk 0:02:56]} 5. Be2 {[%clk 0:02:58]}  e6 {[%clk 0:02:56]} 6. O-O {[%clk 0:02:57]}  Be7 {[%clk 0:02:55]} 7. c4 {[%clk 0:02:56]}  Nb6 {[%clk 0:02:55]} 8. Nc3 {[%clk 0:02:56]}  O-O {[%clk 0:02:54]} 9. Be3 {[%clk 0:02:56]}  Nc6 {[%clk 0:02:53]} 10. exd6 {[%clk 0:02:55]}  cxd6 {[%clk 0:02:53]} 11. d5 {[%clk 0:02:55]}  exd5 {[%clk 0:02:48]} 12. Nxd5 {[%clk 0:02:55]}  Nxd5 {[%clk 0:02:43]} 13. Qxd5 {[%clk 0:02:53]}  Bf6 {[%clk 0:02:41]} 14. h3 {[%clk 0:02:42]}  Be6 {[%clk 0:02:36]} 15. Qd2 {[%clk 0:02:39]}  d5 {[%clk 0:02:36]} 16. cxd5 {[%clk 0:02:25]}  Qxd5 {[%clk 0:02:36]} 17. Rfd1 {[%clk 0:02:17]}  Rfd8 {[%clk 0:02:31]} 18. Qe1 {[%clk 0:01:45]}  Qe4 {[%clk 0:02:23]} 19. Rxd8+ {[%clk 0:01:23]}  Rxd8 {[%clk 0:02:24]} 20. Bb5 {[%clk 0:01:07]}  Bxb2 {[%clk 0:02:13]} 21. Rb1 {[%clk 0:01:06]}  Bf6 {[%clk 0:02:12]} 22. Bxc6 {[%clk 0:00:41]}  Qxc6 {[%clk 0:02:04]} 23. Bxa7 {[%clk 0:00:40]}  Ra8 {[%clk 0:02:03]} 24. Bd4 {[%clk 0:00:37]}  Be7 {[%clk 0:01:59]} 25. Rc1 {[%clk 0:00:32]}  Qd5 {[%clk 0:01:59]} 26. Rd1 {[%clk 0:00:30]}  Qxa2 {[%clk 0:01:58]} 27. Qe5 {[%clk 0:00:20]}  Bf6 {[%clk 0:01:54]} 28. Qe4 {[%clk 0:00:21]}  Bxd4 {[%clk 0:01:53]} 29. Nxd4 {[%clk 0:00:21]}  Qa4 {[%clk 0:01:48]} 30. Qf3 {[%clk 0:00:13]}  Rd8 {[%clk 0:01:48]} 31. Qd3 {[%clk 0:00:10]}  h6 {[%clk 0:01:45]} 32. Kh2 {[%clk 0:00:08]}  b5 {[%clk 0:01:43]} 33. f4 {[%clk 0:00:08]}  Bc4 {[%clk 0:01:41]} 34. Qe4 {[%clk 0:00:07]}  Qxd1 {[%clk 0:01:39]} 0-1


[Site "https://www.chess.com"]